Cogmind - Beta 16 @@@ ROGUE MODE // 2025.12.31 @ 00:05:18 Player: Bity Result: Destroyed self with Heavy Rocket Launcher Performance ------------- Evolutions (5) 2500 Regions Visited (9) 1800 Robots Destroyed (148) 740 Value Destroyed (4653) 4653 Prototype IDs (17) 340 Alien Tech Used (0) 0 Bonus (1385) 1385 TOTAL SCORE: 11418 Bonus ------- High Alert Combat Kills 235 Follower Combat Kills 350 Registered with UFD 300 Met Optimus in HQ 500 Cogmind --------- Core Integrity 0/1000 Matter 241/300 Energy 420/420 System Corruption 4% Temperature Cool (0) Movement Walking (190) Ox1 Location -5/Factory Parts ------- > --- POWER (2) -------- Light Fission Core Light Fission Core > --- PROPULSION (5) --- Carbon-fiber Leg Carbon-fiber Leg Flexi-carbon Leg Flexi-carbon Leg Flexi-carbon Leg > --- UTILITY (7) ------ Huge Storage Unit Compact Battery Gravity Neutralizer Enhanced Optical Array Advanced Salvage Targeting Computer Improved Targeting Computer Advanced Melee Analysis Suite > --- WEAPON (3) ------- Gauss Rifle Heavy Rocket Launcher Remote Datajack > --- INVENTORY (25) --- Neutrino Core Compact Wheel Overtuned Huge Scrapsphere Overtuned Huge Scrapsphere Gyrokinetic Inverter VTOL Module VTOL Module Field Propulsion Drive Improved Heat Sink Large Storage Unit Gravity Neutralizer Gravity Neutralizer Layered Heavy Armor Plating Improved Thermal Shield High-powered Tractor Beam Field Recycling Unit (0) Autogun Datajack Welding Torch Plasma Cutter Junk Cannon (0) Peak State ------------ > --- POWER ------------ Cooled Ion Engine Light Angular Momentum Engine > --- PROPULSION ------- Overtuned Huge Scrapsphere Overtuned Huge Scrapsphere > --- UTILITY ---------- Improved Heat Sink Huge Storage Unit Structural Scanner Active Sensor Suite EM Disruption Field > --- WEAPON ----------- Junk Cannon > --- INVENTORY -------- Heavy Ion Engine Heavy Ion Engine Cooled Ion Engine Light Treads Improved Treads Overtuned Treads Improved Medium Treads Improved Medium Treads Wheel Power Amplifier Large Storage Unit Energy Filter EM Disruption Field Improved EM Shotgun Heavy Laser Improved Assault Rifle Overtuned Barrage Gun Overtuned Barrage Gun Overtuned Coil Gun Magnetic Acceleration Cannon Heavy Flak Cannon Datajack Plasma Cutter [Rating: 87] Favorites ----------- Power Cooled Ion Engine Engine Cooled Ion Engine Power Core Micro Nuclear Core Propulsion Light Treads Treads Light Treads Leg Aluminum Leg Wheel Compact Wheel Hover Unit Improved Gravmag System Flight Unit Cooled VTOL Module Utility Large Storage Unit Device Improved Heat Sink Storage Large Storage Unit Processor Enhanced Optical Array Hackware Hacking Suite Weapon Improved Assault Rifle Energy Gun Heavy Laser Energy Cannon Phase Cannon Ballistic Gun Improved Assault Rifle Ballistic Cannon Magnetic Acceleration Cannon Launcher Precision Rocket Launcher Special Weapon Junk Cannon Impact Weapon Heavy Hammer Piercing Weapon Kinetic Spear Special Melee Weapon Datajack Build | -11 -10 -9 -9 -9 -9 -6 -6 -6 -5 ------- Run | Yrd Mat Mat Sto Rec Scr Fac Low Low Fac Slots Evolved 10 | . . 2 . . . 6 . . 2 Power 1 | . . . . . . 1 . . . Propulsion 3 | . . 2 . . . . . . 1 Utility 5 | . . . . . . 5 . . . Weapon 1 | . . . . . . . . . 1 Parts Attached 138 | 1 4 12 28 1 4 37 3 . 48 Power 19 | . 1 1 5 . . 7 . . 5 Engine 15 | . . 1 5 . . 6 . . 3 Core 4 | . 1 . . . . 1 . . 2 Reactor . | . . . . . . . . . . Propulsion 49 | . 1 6 10 1 2 8 2 . 19 Treads 19 | . . 5 10 1 2 1 . . . Leg 10 | . 1 1 . . . . . . 8 Wheel 17 | . . . . . . 6 2 . 9 Hover 1 | . . . . . . . . . 1 Flight 2 | . . . . . . 1 . . 1 Utility 25 | 1 1 1 . . 1 8 . . 13 Device 15 | 1 . 1 . . . 7 . . 6 Storage 3 | . 1 . . . 1 . . . 1 Processor 6 | . . . . . . 1 . . 5 Hackware 1 | . . . . . . . . . 1 Protection . | . . . . . . . . . . Artifact . | . . . . . . . . . . Weapon 45 | . 1 4 13 . 1 14 1 . 11 Energy Gun 8 | . . 1 2 . . 3 1 . 1 Energy Cannon 2 | . . . 1 . . . . . 1 Ballistic Gun 21 | . 1 3 7 . 1 5 . . 4 Ballistic Cannon 5 | . . . . . . 4 . . 1 Launcher 2 | . . . . . . 1 . . 1 Special Weapon 3 | . . . 1 . . 1 . . 1 Impact Weapon 2 | . . . 2 . . . . . . Slashing Weapon . | . . . . . . . . . . Piercing Weapon 1 | . . . . . . . . . 1 Special Melee Weapon 1 | . . . . . . . . . 1 Unidentified Prototypes 12 | . . 1 6 . . 3 . . 2 Parts Lost 70 | . . 5 1 . . 23 . . 41 Power 11 | . . 1 . . . 4 . . 6 Propulsion 27 | . . 2 1 . . 8 . . 16 Utility 13 | . . 1 . . . 4 . . 8 Weapon 19 | . . 1 . . . 7 . . 11 Highest Loss Streak 18 | . . 4 1 . . 11 . . 18 To Critical Strikes . | . . . . . . . . . . Average Backups 15 | 6 7 12 14 15 16 19 13 14 14 Power 1 | 1 1 . 2 3 3 1 1 1 . Propulsion 2 | 4 3 1 1 1 2 4 3 3 2 Utility 3 | . . 2 3 4 3 2 2 2 4 Weapon 5 | 1 2 5 5 5 5 7 4 5 3 Tool/Special . | . . . . . . . . . . Unused Backups 30 | . 6 . 7 . 2 . . . 15 Power 2 | . 1 . . . . . . . 1 Propulsion 7 | . 1 . . . . . . . 6 Utility 11 | . 2 . . . 2 . . . 7 Weapon 9 | . 2 . 7 . . . . . . Tool/Special 1 | . . . . . . . . . 1 Average Slot Usage (%) 87 | . 100 99 99 100 100 70 83 80 73 Engine 8 | . 3 . 11 11 11 9 6 6 3 Core 2 | . 10 10 . . . 1 6 6 4 Treads 22 | . . 31 43 44 44 8 . . . Leg 2 | . 28 11 . . . . . . 5 Wheel 5 | . . . . . . 8 19 20 11 Flight 1 | . . . . . . 2 6 6 2 Device 14 | . 14 11 11 11 11 19 20 20 12 Storage 10 | . 14 11 11 11 11 9 13 13 6 Processor 1 | . . . . . . . . . 8 Ballistic Gun 9 | . 28 21 16 11 11 1 . . 3 Ballistic Cannon 1 | . . . . . . 3 . . 1 Special Weapon 1 | . . . . . . 2 1 6 1 Impact Weapon 3 | . . . 3 11 11 . . . . Peak Build Rating 87 | 7 9 15 20 20 33 87 66 66 81 Average Rating 40 | 6 8 12 19 19 25 69 63 66 58 On Entrance 29 | 6 7 9 14 19 20 33 58 66 66 Avg Prop Armor Cover (%) 5 | . . 9 . . 7 4 1 1 8 Naked Turns . | . . . . . . . . . . Heaviest Build 148 | 14 29 33 35 35 95 140 140 140 148 Greatest Support 102 | 20 20 80 80 83 91 101 42 42 102 Greatest Overweight (x) 38 | . 1 2 . . 1 38 3 3 33 Average Overweight (x) 1 | . . . . . . 3 3 3 2 Largest Inventory Capacity 25 | 8 15 15 15 15 25 25 25 25 25 Average Capacity 20 | 8 10 15 15 15 21 25 25 25 25 Most Carried 25 | 7 8 15 15 15 24 25 18 16 25 Average Carried 16 | 6 7 12 14 15 19 21 16 16 17 Final Capacity 25 | 8 15 15 15 15 25 25 25 25 25 Final Carried 25 | 7 8 13 15 15 24 19 16 16 25 Class Distribution -------------------- 36% | Scavenger-Mutant 18% | Commander-Mutant 15% | Skirmisher 14% | Scavenger-Skirmisher 11% | Mutant Dominant Class ---------------- Mutant | -10/Materials Scavenger-Mutant | -9/Materials Scavenger-Mutant | -9/Storage Commander-Mutant | -9/Recycling Commander-Mutant | -9/Scraptown Skirmisher | -6/Factory Scavenger-Skirmisher | -6/Lower Caves Scavenger-Skirmisher | -6/Lower Caves Scavenger-Mutant | -5/Factory Resources | -11 -10 -9 -9 -9 -9 -6 -6 -6 -5 ----------- Run | Yrd Mat Mat Sto Rec Scr Fac Low Low Fac Matter Collected 4030 | 250 96 457 948 144 9 1315 90 15 706 Remotely . | . . . . . . . . . . Salvage Created 5667 | 165 171 536 1331 280 . 1974 60 . 1150 Parts 311 | 18 16 33 95 3 . 83 . . 63 Haulers Intercepted 6 | . . 1 5 . . . . . . Recyclers Shooed 15 | . . . 1 . . 11 . . 3 Parts Field Recycled 14 | . . . . . . 14 . . . Retrieved Matter 122 | . . . . . . 122 . . . Parts Self-Destructed . | . . . . . . . . . . Prevented . | . . . . . . . . . . Parts Restored . | . . . . . . . . . . Kills | -11 -10 -9 -9 -9 -9 -6 -6 -6 -5 ------- Run | Yrd Mat Mat Sto Rec Scr Fac Low Low Fac Combat Hostiles Destroyed 99 | . 5 10 24 4 . 34 . . 22 Melee 6 | . . . . . . . . . 6 Guns 59 | . 5 10 24 4 . 11 . . 5 Cannons 23 | . . . . . . 13 . . 10 AOE 3 | . . . . . . 3 . . . Classes Destroyed 15 | 2 4 3 1 2 . 2 1 . . Worker 8 | . . . 2 . . 6 . . . Builder 15 | . . 1 3 . . 7 . . 4 Tunneler 5 | 5 . . . . . . . . . Hauler 6 | . . 1 5 . . . . . . Recycler 8 | 1 . . 1 1 . 3 . . 2 Operator 2 | . 1 . . . . 1 . . . Watcher 5 | . 2 . 2 . . 1 . . . Swarmer 26 | . 3 . 9 . . 7 . . 7 Grunt 37 | . 2 6 4 1 . 15 . . 9 Brawler 1 | . . . . . . 1 . . . Sentry 17 | . . 4 11 1 . 1 . . . Demolisher 1 | . . . . 1 . . . . . Hunter 6 | . . . . 1 . 4 . . 1 Programmer 11 | . . . . . . 6 . . 5 Samaritan 1 | . . . . . . . 1 . . Best Kill Streak 9 | 5 3 3 5 4 . 9 . . 4 Combat Bots Only 8 | . 3 3 4 4 . 8 . . 4 Max Kills in Single Turn 4 | 1 1 2 1 1 . 4 1 . 1 Gunslinging . | . . . . . . . . . . Exploded 3 | . . . . . . 3 . . . Melee 1 | . . . . . . . . . 1 Uniques/NPCs Destroyed . | . . . . . . . . . . Combat | -11 -10 -9 -9 -9 -9 -6 -6 -6 -5 -------- Run | Yrd Mat Mat Sto Rec Scr Fac Low Low Fac Hostile Shots Fired 885 | . 19 88 169 22 . 314 . . 273 Missed 240 | . 5 26 44 8 . 86 . . 71 Hits 645 | . 14 62 125 14 . 228 . . 202 Projectile 645 | . 14 62 125 14 . 228 . . 202 AOE 11 | . . . . 7 . . . . 4 Critical Strikes 18 | . . 2 3 . . 8 . . 5 Part Disruptions 1 | . . . . . . 1 . . . Damage Taken 11035 | . 144 859 1529 351 . 4029 . . 4123 Core 2115 | . 20 99 155 68 . 769 . . 1004 Absorbed by Shields 84 | . . . . . . 84 . . . Regen/Repaired (Parts) 200 | . . . 200 . . . . . . Core Remaining (%) 55 | 100 92 . . . 19 . . 9 . Volleys Fired 427 | 10 19 46 115 12 . 151 4 . 70 Largest 3 | 2 2 2 2 1 . 2 2 . 3 Hottest 119 | 40 40 43 46 23 . 99 119 . 95 Shots Fired 661 | 20 38 94 199 13 . 202 8 . 87 Gun 500 | 20 38 94 198 13 . 97 8 . 32 Cannon 116 | . . . . . . 69 . . 47 Launcher 5 | . . . . . . 4 . . 1 Special 40 | . . . 1 . . 32 . . 7 Kinetic 556 | 20 38 94 191 13 . 136 . . 64 Thermal 30 | . . . 1 . . 16 4 . 9 Explosive 5 | . . . . . . 4 . . 1 Electromagnetic 31 | . . . 7 . . 14 4 . 6 Impact 39 | . . . . . . 32 . . 7 Robot Hit Streak 22 | 4 12 15 22 7 . 15 7 . 16 Robot Miss Streak 6 | 3 1 2 3 1 . 6 1 . 5 Penetration Max 1 | . . . . . . 1 . . . Secondary Targets 6 | . 1 . 5 . . . . . . Max Gunslinging Chain 1 | . 1 . 1 . . . . . . Shots Hit Robots 508 | 9 27 75 149 11 . 136 6 . 95 Core Hits 238 | 7 15 23 52 6 . 89 1 . 45 Critical Kills 3 | . . . 1 . . 1 . . 1 Critical Parts Destroyed 12 | . 1 . 1 . . 10 . . . Critical Strikes 18 | . 1 . 2 . . 11 . . 4 Destroy 6 | . 1 . 2 . . 2 . . 1 Blast 3 | . . . . . . . . . 3 Smash 9 | . . . . . . 9 . . . Melee Attacks 59 | . . . 11 14 . 1 . . 33 Impact 26 | . . . 11 14 . 1 . . . Slashing . | . . . . . . . . . . Piercing 30 | . . . . . . . . . 30 Sneak Attacks 15 | . . . 4 1 . 1 . . 9 Combat Hostiles . | . . . . . . . . . . Follow-up Attacks . | . . . . . . . . . . Damage Inflicted 13398 | 112 283 987 2372 237 . 6247 155 . 3005 Guns 5678 | 112 283 987 2109 181 . 1491 112 . 403 Cannons 1891 | . . . . . . 872 . . 1019 Explosions 1377 | . . . . . . 1334 43 . . Melee 1555 | . . . 251 56 . 95 . . 1153 Ramming . | . . . . . . . . . . Kinetic 6578 | 112 283 987 2002 181 . 1829 . . 1184 Thermal 541 | . . . 12 . . 279 38 . 212 Explosive 1334 | . . . . . . 1334 . . . Electromagnetic 505 | . . . 107 . . 255 117 . 26 Impact 3287 | . . . 251 56 . 2550 . . 430 Slashing . | . . . . . . . . . . Piercing 1153 | . . . . . . . . . 1153 Highest Corruption 11 | . . 5 11 11 . 7 7 7 4 Average Corruption 6 | . . 4 8 11 . 3 7 7 2 Corruption Purged . | . . . . . . . . . . Corruption Blocked . | . . . . . . . . . . Effects 179 | . . 15 59 42 . 30 17 8 8 Message Errors 38 | . . 4 10 11 . 4 5 2 2 Matter Fused 37 | . . 5 9 7 . 10 2 2 2 Heat Flow Errors 25 | . . 1 8 6 . 6 2 1 1 Energy Discharges 24 | . . . 12 4 . 6 2 . . Parts Rejected 1 | . . . . . . 1 . . . Parts Fused 3 | . . 1 1 1 . . . . . Data Loss (minor) 26 | . . 2 9 10 . 1 2 1 1 Data Loss (major) 9 | . . . 5 . . 1 2 1 . Misfires 6 | . . 2 1 1 . 1 1 . . Alerts 5 | . . . 2 1 . . . 1 1 Misdirections 1 | . . . . 1 . . . . . Weapon Failures 4 | . . . 2 . . . 1 . 1 Overload Shots . | . . . . . . . . . . Overflow Damage 1787 | . . . 86 26 . 1474 11 . 190 Projectiles 1293 | . . . . . . 1197 . . 96 Explosions 228 | . . . . . . 217 11 . . Melee 266 | . . . 86 26 . 60 . . 94 Knockbacks 46 | . . . 1 . . 32 . . 13 Impact 20 | . . . 1 . . 15 . . 4 Kinetic 22 | . . . . . . 13 . . 9 Secondary 4 | . . . . . . 4 . . . Self-Inflicted Damage 209 | . . . . . . 157 . . 52 Shots 4 | . . . . . . 3 . . 1 Rammed . | . . . . . . . . . . Targets Rammed . | . . . . . . . . . . Kicked . | . . . . . . . . . . Crushed . | . . . . . . . . . . Highest Temperature 283 | . 9 146 264 232 . 277 212 266 283 Average Temperature 68 | . 4 24 108 85 . 53 70 134 111 Received Heat Transfer 1983 | . 33 366 390 42 . 408 . . 744 Effects 1 | . . . . . . . . . 1 Energy Bleed 1 | . . . . . . . . . 1 Siege Activations . | . . . . . . . . . . Martial Activations . | . . . . . . . . . . Shielding Activations . | . . . . . . . . . . Robots Disrupted . | . . . . . . . . . . Combat Hostiles . | . . . . . . . . . . Robots Corrupted 15 | . . . 2 1 . 10 1 . 1 Combat Hostiles 8 | . . . . . . 7 . . 1 Parts Fried 22 | . . . 8 1 . 9 3 . 1 Impact Corruptions 42 | . . . 5 1 . 33 . . 3 Robots Melted . | . . . . . . . . . . Combat Hostiles . | . . . . . . . . . . Parts Melted 4 | . . . . . . 1 . . 3 Heat Transferred 851 | . . . 37 . . 481 74 . 259 Parts Sabotaged . | . . . . . . . . . . Parts Stolen . | . . . . . . . . . . Parts Stripped . | . . . . . . . . . . Power Chain Reactions 1 | . . . . . . . 1 . . Alert | -11 -10 -9 -9 -9 -9 -6 -6 -6 -5 ------- Run | Yrd Mat Mat Sto Rec Scr Fac Low Low Fac Maximum Alert Level 3 | . . . 1 . . 3 . . . Low Security (%) 85 | 100 100 100 97 100 . 57 . . 100 Level 1 5 | . . . 2 . . 15 . . . Level 2 1 | . . . . . . 5 . . . Level 3 7 | . . . . . . 21 . . . Level 4 . | . . . . . . . . . . Level 5 . | . . . . . . . . . . High Security . | . . . . . . . . . . Max Security . | . . . . . . . . . . Peak Influence 809 | 15 84 85 204 74 . 809 . . 193 Initial 74 | . 3 1 17 74 . . . . . Average 134 | 5 34 19 74 15 . 298 . . 69 Influence Increases 4375 | 30 189 300 935 250 . 1689 . . 982 Destroy 0b10 Robot/C 2140 | . 100 200 480 160 . 680 . . 520 Destroy 0b10 Robot/NC 255 | 30 15 10 65 5 . 90 . . 40 Destroy Leader 514 | . 24 62 154 . . 162 . . 112 Allied During Kill 87 | . . . . 31 . . . . 56 Successful Hack 133 | . 5 13 53 43 . 5 . . 14 Disable Machine 285 | . . . 75 . . 195 . . 15 Destroy Structure 116 | . . . 3 11 . 52 . . 50 Partial Spotted 15 | . . . . . . 15 . . . Lose Combat Pursuer 330 | . 45 15 105 . . 90 . . 75 Active Sensor Use 500 | . . . . . . 400 . . 100 Influence Decreases 4213 | 25 190 262 785 442 . 1512 177 . 820 Entered New Map 215 | . 2 3 25 118 . . 67 . . Time Decay 2158 | 25 188 222 458 248 . 571 110 . 336 Search Patrol Dispatched 100 | . . . . . . 100 . . . Lost Part 661 | . . 37 10 . . 230 . . 384 Lost Ally 187 | . . . . 76 . 11 . . 100 Purge Threat 892 | . . . 292 . . 600 . . . Squads Dispatched 27 | . . 1 2 . . 15 . . 9 Investigation 11 | . . 1 2 . . 5 . . 3 Extermination 8 | . . . . . . 6 . . 2 Reinforcement 8 | . . . . . . 4 . . 4 Assault . | . . . . . . . . . . Garrison . | . . . . . . . . . . Intercept . | . . . . . . . . . . Searches Triggered 1 | . . . . . . 1 . . . Construction Impeded 4 | . . . . . . 2 . . 2 Haulers Reinforced . | . . . . . . . . . . Active Scanning Responses 5 | . . . . . . 4 . . 1 Cargo Convoy Interrupts . | . . . . . . . . . . Stealth | -11 -10 -9 -9 -9 -9 -6 -6 -6 -5 --------- Run | Yrd Mat Mat Sto Rec Scr Fac Low Low Fac Distress Signals 11 | . 1 . 4 1 . 4 . . 1 Communications Jammed . | . . . . . . . . . . Distress Signals . | . . . . . . . . . . Times Spotted 155 | . 12 13 36 8 . 50 . . 36 Peak Tracking Total 8 | . 5 2 5 6 . 7 . . 8 Tactical Retreats 16 | . 2 1 7 . . 4 . . 2 Traps | -11 -10 -9 -9 -9 -9 -6 -6 -6 -5 ------- Run | Yrd Mat Mat Sto Rec Scr Fac Low Low Fac Traps Triggered 6 | . . . 4 . . 2 . . . Indirectly . | . . . . . . . . . . Trap Hack Attempts 1 | . . . . . . . . . 1 Triggered . | . . . . . . . . . . Disarmed 4 | . . . 4 . . . . . . Reprogrammed 1 | . . . . . . . . . 1 Reused . | . . . . . . . . . . Traps Extracted . | . . . . . . . . . . Installed . | . . . . . . . . . . Triggered . | . . . . . . . . . . Machines | -11 -10 -9 -9 -9 -9 -6 -6 -6 -5 ---------- Run | Yrd Mat Mat Sto Rec Scr Fac Low Low Fac Machines Disabled 19 | . . . 5 . . 13 . . 1 Max in Single Turn 4 | . . . 1 . . 4 . . 1 Machines Repaired . | . . . . . . . . . . Machines Dismantled 1 | . . . 1 . . . . . . Machines Sabotaged . | . . . . . . . . . . Overloaded Fab Kills . | . . . . . . . . . . Hacking | -11 -10 -9 -9 -9 -9 -6 -6 -6 -5 --------- Run | Yrd Mat Mat Sto Rec Scr Fac Low Low Fac Machines Accessed 41 | . 3 4 13 8 4 6 . . 3 Terminals 29 | . 3 3 11 6 . 4 . . 2 Fabricators . | . . . . . . . . . . Repair Stations 1 | . . . 1 . . . . . . Recycling Units 5 | . . . 1 2 . 1 . . 1 Scanalyzers 2 | . . 1 . . . 1 . . . Garrison Access . | . . . . . . . . . . Total Hacks 138 | . 5 14 50 18 28 17 . . 6 Successful 89 | . 2 8 29 11 28 8 . . 3 Failed 49 | . 3 6 21 7 . 9 . . 3 Catastrophic 11 | . 1 2 3 3 . 2 . . . Database Lockouts . | . . . . . . . . . . Manual 51 | . 4 5 17 12 . 8 . . 5 Terminals 89 | . 5 9 40 16 . 14 . . 5 Fabricators . | . . . . . . . . . . Repair Stations 7 | . . . 7 . . . . . . Recycling Units 7 | . . . 3 2 . 1 . . 1 Scanalyzers 7 | . . 5 . . . 2 . . . Garrison Access . | . . . . . . . . . . Terminal Hacks 54 | . . 1 15 5 28 4 . . 1 Record 28 | . . . . . 28 . . . . Robot Schematic 1 | . . . 1 . . . . . . Prototype ID Bank 2 | . . . 1 1 . . . . . Open Door 1 | . . . 1 . . . . . . Branch Access Points 2 | . . . 1 1 . . . . . Emergency Access Points 1 | . . . . . . . . . 1 Terminal Index 3 | . . . 1 2 . . . . . Fabricator Index 1 | . . . . 1 . . . . . Scanalyzer Index 1 | . . . 1 . . . . . . Unreport Threat 6 | . . . 2 . . 4 . . . Disarm Traps 1 | . . . 1 . . . . . . Hauler Manifests 2 | . . . 2 . . . . . . Registered Components 1 | . . . 1 . . . . . . Zone Layout 4 | . . 1 3 . . . . . . Fabricator Hacks . | . . . . . . . . . . Repair Station Hacks 6 | . . . 6 . . . . . . Scan Component 3 | . . . 3 . . . . . . Repair 3 | . . . 3 . . . . . . Recycling Unit Hacks 5 | . . . 2 2 . 1 . . . Report Inventory 4 | . . . 1 2 . 1 . . . Retrieve Components 1 | . . . 1 . . . . . . Scanalyzer 5 | . . 4 . . . 1 . . . Retrieve Study 5 | . . 4 . . . 1 . . . Garrison Access Hacks . | . . . . . . . . . . Unauthorized Hacks 19 | . 2 3 6 4 . 2 . . 2 Terminals 18 | . 2 3 6 4 . 2 . . 1 Track 1 | . . . 1 . . . . . . Botnet 17 | . 2 3 5 4 . 2 . . 1 Fabricators . | . . . . . . . . . . Repair Stations . | . . . . . . . . . . Recycling Units 1 | . . . . . . . . . 1 Scrapoids 1 | . . . . . . . . . 1 Scanalyzers . | . . . . . . . . . . Garrison Access . | . . . . . . . . . . Data Cores Recovered 1 | . 1 . . . . . . . . Used . | . . . . . . . . . . Hacking Detections 33 | . 3 4 13 6 . 5 . . 2 Full Trace Events 7 | . . 1 4 . . 1 . . 1 Feedback Events 3 | . . 1 . . . 1 . . 1 Corruption 2 | . . 1 . . . 1 . . . Hackware Fried 1 | . . . . . . . . . 1 Feedback Blocked . | . . . . . . . . . . Robot Schematics Acquired 1 | . . . 1 . . . . . . Robots Built . | . . . . . . . . . . Authchips . | . . . . . . . . . . Time . | . . . . . . . . . . Total Robot Build Rating . | . . . . . . . . . . Part Schematics Acquired . | . . . . . . . . . . Parts Built . | . . . . . . . . . . Authchips . | . . . . . . . . . . Time . | . . . . . . . . . . Total Part Build Rating . | . . . . . . . . . . Part Studies Acquired 5 | . . 4 . . . 1 . . . Parts Repaired 3 | . . . 3 . . . . . . Time 84 | . . . 84 . . . . . . Parts Recycled . | . . . . . . . . . . Recycled Matter . | . . . . . . . . . . Retrieved Matter . | . . . . . . . . . . Retrieved Components 2 | . . . 2 . . . . . . Parts Scanalyzed . | . . . . . . . . . . Part Schematics Acquired . | . . . . . . . . . . Parts Damaged . | . . . . . . . . . . Bothacking | -11 -10 -9 -9 -9 -9 -6 -6 -6 -5 ------------ Run | Yrd Mat Mat Sto Rec Scr Fac Low Low Fac Used RIF Installer . | . . . . . . . . . . Robots Hacked 2 | . . . . . . . . . 2 Non-combat 1 | . . . . . . . . . 1 Combat 1 | . . . . . . . . . 1 Robot Hacks Applied 3 | . . . . . . . . . 3 parse_system 1 | . . . . . . . . . 1 no_distress 1 | . . . . . . . . . 1 find_recycling 1 | . . . . . . . . . 1 Relay Couplers Released . | . . . . . . . . . . Fabnet Peak Effective % . | . . . . . . . . . . Robots Rewired 6 | . . . . 6 . . . . . Allies Hacked 2 | . . . . . . 1 . . 1 Hacks Repelled . | . . . . . . . . . . Allies | -11 -10 -9 -9 -9 -9 -6 -6 -6 -5 -------- Run | Yrd Mat Mat Sto Rec Scr Fac Low Low Fac Total Allies 21 | . . . 10 6 . . . . 5 Largest Group 10 | . . . 10 10 4 4 . . 5 Highest-Rated Group 238 | . . . 88 88 58 58 . . 238 Highest-Rated Ally 50 | . . . 16 27 27 27 . . 50 Total Orders . | . . . . . . . . . . Ally Attacks 82 | . . . . 34 . 1 . . 47 Total Damage 1429 | . . . . 378 . 31 . . 1020 Kills 11 | . . . . 5 . . . . 6 Allies Corrupted 2 | . . . . . . . . . 2 Allies Melted . | . . . . . . . . . . Intel | -11 -10 -9 -9 -9 -9 -6 -6 -6 -5 ------- Run | Yrd Mat Mat Sto Rec Scr Fac Low Low Fac Active Infowar (turns) 5521 | 26 495 653 . . . 2641 427 273 1006 Optics 597 | . . . . . . . . . 597 A.S.S. 3749 | . . . . . . 2640 427 273 409 Terrain 294 | . . . . . . . . . 294 Structural 1779 | . . . . . . 1779 . . . Seismic 1174 | 26 495 653 . . . . . . . Robot Analysis Total . | . . . . . . . . . . Derelict Logs Recovered 2 | . . . . . . . 1 1 . Drone Launches . | . . . . . . . . . . Drone Recoveries . | . . . . . . . . . . Exploration | -11 -10 -9 -9 -9 -9 -6 -6 -6 -5 ------------- Run | Yrd Mat Mat Sto Rec Scr Fac Low Low Fac Turns Passed 10436 | 92 495 695 1716 1083 1459 2818 427 273 1378 Spaces Moved 5002 | 32 294 304 676 572 757 1183 302 203 679 Core 9 | . . . . . . 5 . . 4 Treads 2589 | . . 301 676 572 757 283 . . . Legs 381 | 32 294 3 . . . . . . 52 Wheels 2023 | . . . . . . 895 302 203 623 Hover . | . . . . . . . . . . Flight . | . . . . . . . . . . Fastest Speed 90 | 120 120 160 160 160 155 90 135 135 90 Average Speed 157 | 120 139 160 160 160 189 160 135 135 140 Slowest Speed 1950 | 120 190 260 160 160 226 1950 135 135 1700 Overloaded Moves . | . . . . . . . . . . Propulsion Burnouts . | . . . . . . . . . . Robots Hopped . | . . . . . . . . . . Potential Cave-ins . | . . . . . . . . . . Cave-ins Triggered . | . . . . . . . . . . Exploration Rate (%) 43 | 3 40 25 93 93 66 27 48 27 12 Regions Visited 9 Branch Regions 5 Pre-discovered Areas 1 | . . . . . . . 1 . . Known Exits Taken 4 | . . . 1 . . 1 1 1 . Unknown Exits Taken 5 | 1 1 1 . 1 1 . . . . Scrap Searched 5 | . . . . . 1 . 2 2 . Spaces Dug 45 | . . . . 10 . 21 . . 14 Terrain Destroyed 81 | . . . . 10 . 52 . . 19 Melee 11 | . . . . 10 . . . . 1 Projectile 24 | . . . . . . 15 . . 9 AOE 46 | . . . . . . 37 . . 9 Terrain Rammed . | . . . . . . . . . . Walls Destroyed . | . . . . . . . . . . Machines Disabled . | . . . . . . . . . . Actions | -11 -10 -9 -9 -9 -9 -6 -6 -6 -5 --------- Run | Yrd Mat Mat Sto Rec Scr Fac Low Low Fac Total 6815 | 67 349 419 1086 704 784 1914 314 202 976 Wait 882 | 24 26 41 203 32 9 467 2 . 78 Move 4993 | 31 293 303 675 571 756 1182 301 202 679 Hop . | . . . . . . . . . . Pick Up 102 | 1 2 11 15 . 8 23 . . 42 Fast Attach 32 | 1 . 2 3 . . 9 . . 17 Attach 86 | . . 6 . . . 42 4 . 34 Detach 28 | . . 1 . . . 20 2 . 5 Swap 68 | . 4 5 32 1 4 12 1 . 9 Drop 58 | . 5 4 26 1 7 7 . . 8 Fire 427 | 10 19 46 115 12 . 151 4 . 70 Melee 59 | . . . 11 14 . 1 . . 33 Ram . | . . . . . . . . . . Kick . | . . . . . . . . . . Crush . | . . . . . . . . . . Escape Stasis . | . . . . . . . . . . Rewire 73 | . . . . 73 . . . . . Trap 1 | . . . . . . . . . 1 Miscellaneous 6 | . . . 6 . . . . . . Route ------- -11/Scrapyard -10/Materials -9/Materials (discovered 2 exits: [*Mat] / *Sto) -9/Storage (discovered 2 exits: [*Mat] / *Rec) -9/Recycling (discovered 2 exits: [*Fac] / *Scr) -9/Scraptown (discovered 2 exits: *Fac x2) -6/Factory -6/Lower Caves -6/Lower Caves -5/Factory (discovered 1 exit: Ext) History --------- Turn | Location | Event 1 | -11/Scrapyard | Discovered new exit (range 3) 93 | -11/Scrapyard | Entered Materials 318 | -10/Materials | Build established: Mutant 380 | -10/Materials | Discovered new exit (range 13) 588 | -10/Materials | Entered another Materials area 588 | -9/Materials | Evolved 2 slots: Propulsion x2 1065 | -9/Materials | Discovered new exit (range 16) 1203 | -9/Materials | Build established: Scavenger-Mutant 1224 | -9/Materials | Discovered new exit (range 6) 1283 | -9/Materials | Lost 4 parts (1p1n1u1w) 1283 | -9/Materials | Entered Storage 2221 | -9/Storage | System corruption reached 10% 2225 | -9/Storage | Discovered new exit (range 16) 2238 | -9/Storage | Core integrity fell below 50% 2426 | -9/Storage | Repaired Lgt. Treads+ 2453 | -9/Storage | Repaired Lgt. Treads+ 2487 | -9/Storage | Repaired Plasma Cutter 2828 | -9/Storage | Identified exit to Recycling 2955 | -9/Storage | Assisted by bots powering up and referring to "LRC-V3" 2980 | -9/Storage | Used back door to open Recycling access 2999 | -9/Storage | Entered Recycling 2999 | -9/Recycling | Accompanied by 10 allies 3251 | -9/Recycling | Build established: Commander-Mutant 3589 | -9/Recycling | Discovered new exit (range 8) 3821 | -9/Recycling | Core integrity fell below 20% 3838 | -9/Recycling | Lost 7 allies 4040 | -9/Recycling | Scanned before Scraplab entrance 4062 | -9/Recycling | Entered Scraplab 4075 | -9/Recycling | Discovered new exit (range 2) 4082 | -9/Recycling | Entered Scraptown 4082 | -9/Scraptown | Accompanied by 4 allies 4082 | -9/Scraptown | System corruption cleaned by C-Scrubber 4097 | -9/Scraptown | Heard Great Nut preacher, LISTEN AND RECITE! 4366 | -9/Scraptown | Build established: Scavenger-Mutant 4378 | -9/Scraptown | Discovered new exit (range 11) 4537 | -9/Scraptown | Visited The Evicted 4561 | -9/Scraptown | Visited UFD Registry 4561 | -9/Scraptown | Registered with UFD as "Protodrive" 4618 | -9/Scraptown | Visited Modified Component R&D 4728 | -9/Scraptown | Visited Scrapoid Pod Storage 4761 | -9/Scraptown | Visited Science Testing Area 4795 | -9/Scraptown | Visited Supply Room 4849 | -9/Scraptown | Visited Infowarlord's Domain 4864 | -9/Scraptown | Found Active Sensor Suite 4903 | -9/Scraptown | Visited Analyses Database 4931 | -9/Scraptown | Build established: Commander-Mutant 4931 | -9/Scraptown | Visited Abandonware Association 4958 | -9/Scraptown | Learned abandonware demo "HACKBUD.EXE" 5005 | -9/Scraptown | Visited Junk Cannon Lab 5020 | -9/Scraptown | Found Prototype Special Weapon 5059 | -9/Scraptown | Visited Curators Association 5094 | -9/Scraptown | Visited Junk Repository 5378 | -9/Scraptown | Met Optimus 5378 | -9/Scraptown | Accepted into 0bPrime 5520 | -9/Scraptown | Discovered new exit (range 5) 5541 | -9/Scraptown | Entered Factory 5541 | -6/Factory | Accompanied by 4 allies 5541 | -6/Factory | Evolved 6 slots: Power x1, Utility x5 5717 | -6/Factory | Discovered new exit (range 16) 6108 | -6/Factory | Build established: Skirmisher 6248 | -6/Factory | Identified Junk Cannon 6941 | -6/Factory | Search patrols dispatched 7360 | -6/Factory | Lost 11 parts (1p5n2u3w) 7497 | -6/Factory | Destroyed 8 combat bots 7503 | -6/Factory | Core integrity fell below 50% 7566 | -6/Factory | Lost 5 parts (2p1n2w) 7596 | -6/Factory | Core integrity fell below 20% 8346 | -6/Factory | Build established: Scavenger-Skirmisher 8358 | -6/Factory | Identified exit to Lower Caves 8359 | -6/Factory | Entered Lower Caves 8504 | -6/Lower Caves | Learned location of Extension (-5) 8720 | -6/Lower Caves | Discovered new exit (range 14) 8755 | -6/Lower Caves | Identified exit to Lower Caves 8786 | -6/Lower Caves | Entered another Lower Caves area 9042 | -6/Lower Caves | Discovered new exit (range 4) 9044 | -6/Lower Caves | Identified exit to Factory 9059 | -6/Lower Caves | Entered Factory 9059 | -5/Factory | Evolved 2 slots: Propulsion x1, Weapon x1 9060 | -5/Factory | Identified exit to Extension 9424 | -5/Factory | Hacking Suite fried by hacking feedback 9808 | -5/Factory | Core integrity fell below 50% 9872 | -5/Factory | Lost 18 parts (3p6n4u5w) 9972 | -5/Factory | Lost 4 parts (1p1n2w) 10085 | -5/Factory | Core integrity fell below 20% 10180 | -5/Factory | Lost 14 parts (2p7n2u3w) 10265 | -5/Factory | Scrapoid reinforcements arrived 10307 | -5/Factory | Build established: Scavenger-Mutant 10391 | -5/Factory | Lost 5 allies 10437 | -5/Factory | Destroyed self with Heavy Rocket Launcher Last Messages --------------- 10364_ Destroyed Hpw. Shock Rifle. 10367_ System corrupted: Gauss Rifle jammed. 10370_ P-70 Sage destroyed. 10379_ Acquired 46 matter. 10381_ Penetrated by Slug. 10381_ Acquired 140 matter. 10384_ Penetrated by Slug. 10384_ Kinetic Spear destroyed. 10387_ JVKG= ZQRU|&BLQQ#ZQ7#JA8%6UXQ 10387_ R-10 Processor collects Corrupted Scrap Suit. 10387_ Acquired Corrupted Neutrino Core. 10402_ Acquired Unknown Storage. 10402_ Identified Com. Battery. 10406_ Acquired Adv. Melee Analysis Suite. 10416_ System corrupted: Matter fused (-5). 10418_ ALERT: Security rotation in progress. 10423_ Acquired Remote Datajack. 10434_ Slug penetrates Wall. 10436_ Acquired Hvy. Rocket Launcher. Map ----- +----------------------------------------------------+ | ???????????????????????????# # *|=[%!""" " | | ???????????????????????????########### |%=!####### | | ?????????????????????????????????????# %=!%#?????? | | ????????????????????????????????????## = ! #?????? | | ????????????????????????????????????#" ! #?????? | | ????????????????????????????????????#" #?????? | | ??????????????????????###############" #?????? | | ??????????????????????# #"" = ###???? | | ??????????????????????# """"""""" !" *[*%! #???? | | ??????????????????????# #!%*=[= #???? | | ??????????????????????# """"""""" # !|%=[ #???? | | ??????????????????????# # [%[ #???? | | ??????????????????????# """"""""" + = #???? | | ??????????????????????# # #???? | | ??????????????????????# """"""""" # #???? | | ??????????????????????# # #???? | | ??????????????????????# """"""""" # #???? | | ??????????????????????# #" ##???? | | ??????????????????????# ## #????? | | ??????????????????????########+###### #????? | | ?????????????????????????????# #????# #????? | | ??????????????????????????##?# #????# #????? | | ????????????????????????## #????# #????? | | ???????????????????????## h###### #????? | | ???????????????????????# # #????? | | ???????????????????????# @ # #????? | | ???????????????????????# # ?????? | | ???????????????????????# # ????????? | | ???????????????????????# # ??????????? | | ???????????????????????# #????????????? | | ???????????????????????# +????????????? | | ???????????????????????# #????????????? | | ???????????????????????# " " #????????????? | | ???????????????????????# "Y" #????????????? | | ???????????????????????# """ #????????????? | | ???????????????????????# #????????????? | | ???????????????????????##############????????????? | | ?????????????????????????????????????????????????? | | ?????????????????????????????????????????????????? | | ?????????????????????????????????????????????????? | | ?????????????????????????????????????????????????? | | ?????????????????????????????????????????????????? | | ?????????????????????????????????????????????????? | | ?????????????????????????????????????????????????? | | ?????????????????????????????????????????????????? | | ?????????????????????????????????????????????????? | | ?????????????????????????????????????????????????? | | ?????????????????????????????????????????????????? | | ?????????????????????????????????????????????????? | | ?????????????????????????????????????????????????? | +----------------------------------------------------+ Best States ------------- Heat Dissipation 51 Energy Generation 31 Energy Capacity 460 Matter Stores 300 Matter Capacity 300 Sight Range 22 Robot Scan Range 20 Terrain Scan Range 14 Terrain Scan Density 10 Power Amplification 20 Additional Mass Support 12 Resistance: TH 25 Resistance: EX 50 Evasion (%) 55 Targeting Accuracy 6 Melee Accuracy 8 Recoil Reduction 4 Energy Filtering 30 Salvage Targeting 3 Item Schematics ----------------- None Robot Schematics ------------------ K-01 Serf | -9/Storage | Hacked Fabricated ------------ Nothing Repaired ---------- Lgt. Treads | 24% | -9/Storage Lgt. Treads | 49% | -9/Storage Plasma Cutter | 23% | -9/Storage Studied --------- Lgt. Treads | -9/Materials | Hacked Wheel | -9/Materials | Hacked Assault Rifle | -9/Materials | Hacked Autogun | -9/Materials | Hacked Magnetic Acceleration Cannon | -6/Factory | Hacked Alien Tech Used ----------------- None Achievements -------------- None Challenges ------------ None Game ------ Seed HugeBehemothBallwheel Manual? 0 Play Time 01:22:48 Cumulative 54.1 hours Start 2025.12.30 @ 22:44:21 End 2025.12.31 @ 00:05:18 Sessions 1 Manual Loads 0 Difficulty Rogue Special Mode None Game No. 72 Rogue 72 Adventurer 0 Explorer 0 Win Type - Total 1 Types 1/0/0/0/0/0/0/0/0/0 Lore% 40 Gallery% 46 Achievement% 35 Wizard Run 0 Options --------- Layout 2 ASCII 0 Keyboard 1 Movement Numpad Keybinds 0 Fullscreen 2 Font 24/Smallcaps Map View 50x44 Zoom Use 0% Tactical HUD 1 Map Filters NONE Filters NONE Steam 1 RUN: 7315bccc-8a46-465d-b0d9-50c1335794cd